bitfinex-derivatives/quotes_ETHF0:USTF0_20251001
["timestamp","ask_amount","ask_price","bid_price","bid_amount"]
[1759310786196,0.00217747,4292.4,4292.3,8.05948712]
[1759310786397,5.0,4292.6,4292.5,8.7974]
[1759310786597,4.4348,4294.0,4293.4,7.447]
[1759310786598,7.3825,4293.5,4293.4,7.447]
[1759310787313,7.3825,4293.5,4293.4,7.4491343]
[1759310787314,7.38495076,4293.5,4293.4,7.4491343]
[1759310787615,4.19355076,4293.5,4293.4,7.4491343]
[1759310788616,2.11865076,4293.5,4293.4,7.4491343]
[1759310789210,4.19355076,4293.5,4293.4,7.4491343]
[1759310789710,4.19355076,4293.5,4293.4,7.4441343]
[1759310790017,4.18855076,4293.5,4293.4,7.4441343]
[1759310790214,2.11365076,4293.5,4293.4,10.6519343]
[1759310790516,7.3825,4294.4,4294.3,7.447]
[1759310791016,7.3825,4294.4,4293.5,1.3504]
[1759310791017,7.3825,4293.8,4293.7,5.2793]
[1759310791313,4.1911,4293.8,4293.7,2.0715]
[1759310791523,4.1911,4293.8,4293.7,10.6548]
[1759310791816,2.1162,4293.8,4293.7,10.6548]
[1759310792208,0.00210459,4294.4,4293.9,0.419]
[1759310792413,3.2078,4295.7,4294.6,3.3143]
[1759310792619,2.1162,4294.7,4294.6,7.447]
[1759310792822,4.1911,4294.7,4294.6,7.447]
[1759310793119,7.3825,4294.7,4294.6,7.447]
[1759310793519,4.19295268,4294.7,4294.6,7.447]
[1759310793720,0.00185268,4294.7,4294.6,7.447]
[1759310794018,2.11805268,4294.7,4294.6,7.447]
[1759310794614,0.00185268,4294.7,4294.6,7.447]
[1759310795015,0.00185268,4294.7,4294.6,12.447]
[1759310795511,7.3825,4296.0,4295.9,2.0715]
[1759310796214,7.3825,4295.7,4295.2,3.2078]
[1759310796414,7.3825,4295.3,4295.2,3.2078]
[1759310796613,7.38460598,4295.3,4295.2,3.2078]
[1759310796818,7.38460598,4295.3,4295.2,8.5936]
[1759310797216,7.38460598,4295.3,4295.2,10.6548]
[1759310798721,4.19320598,4295.3,4295.2,10.6548]
[1759310799114,7.38460598,4295.3,4295.2,10.6548]
[1759310799815,2.11830598,4295.3,4295.2,10.6548]
[1759310800016,0.00210598,4295.3,4295.2,10.6548]
[1759310804817,4.60985,4296.5,4296.4,5.3858]
[1759310805022,7.80125,4296.5,4296.4,5.3858]
[1759310805316,7.80125,4296.5,4296.4,7.447]
[1759310805519,7.80125,4296.5,4295.5,1.3504]
[1759310805520,12.3825,4296.5,4296.2,3.2078]
[1759310805820,7.80128,4296.3,4296.2,7.447]
[1759310806024,4.1911,4296.3,4296.2,7.447]
[1759310806212,2.1162,4296.3,4296.2,7.447]
[1759310807016,4.1911,4296.3,4296.2,7.447]
[1759310807328,7.3825,4296.3,4296.2,7.447]
[1759310807523,4.1911,4296.3,4296.2,7.447]
[1759310808117,4.60987,4296.3,4296.2,7.447]
[1759310808520,7.80127,4296.3,4296.2,7.447]
[1759310808718,7.3825,4296.3,4295.6,3.2078]
[1759310808919,7.80133,4295.7,4295.6,8.5936]
[1759310809126,7.80133,4295.7,4295.6,5.3858]
[1759310810030,7.3825,4295.7,4295.6,5.3858]
[1759310810625,7.80133,4295.7,4295.6,5.3858]
[1759310810814,7.3825,4295.7,4295.6,5.3858]
[1759310811021,7.3825,4295.7,4295.6,7.447]
[1759310811218,7.80133,4295.7,4295.6,7.447]
[1759310812125,7.80133,4295.7,4295.6,3.3143]
[1759310812319,7.80133,4295.7,4295.6,5.3858]
[1759310813427,7.80133,4295.7,4295.6,2.0715]
[1759310814926,4.1911,4295.7,4295.6,10.5201]
[1759310815123,2.1162,4295.7,4295.6,10.5201]
[1759310815529,2.1162,4295.7,4294.7,1.04731]
[1759310815530,4.1692,4295.7,4293.9,1.22260195]
[1759310815726,4.1692,4295.7,4293.3,0.04080609]
[1759310815727,22.48855405,4295.7,4293.3,0.04080609]
[1759310815928,0.41955,4288.3,4286.5,44.72117865]
[1759310816230,3.47611,4288.7,4287.7,3.2078]
[1759310816430,3.0566,4288.4,4287.7,3.3651558]
[1759310816633,0.41957,4288.1,4287.7,3.36814125]
[1759310816834,3.88014583,4288.0,4287.7,3.36814125]
[1759310817027,0.4196,4287.8,4287.7,0.16034125]
[1759310817333,0.4196,4287.8,4287.2,3.2078]
[1759310817334,0.41964,4287.4,4287.2,3.2078]
[1759310817534,0.82354583,4287.3,4287.2,3.2078]
[1759310817833,0.82354583,4287.3,4286.6,3.2078]
[1759310818034,0.82354583,4287.2,4286.6,3.2078]
[1759310818235,0.80177276,4287.1,4286.6,3.21016149]
[1759310818430,6.2644,4287.7,4286.6,3.21016149]
[1759310818728,6.2644,4287.7,4286.9,0.41969]
[1759310818932,1.2551,4288.0,4287.1,3.2078]
[1759310819932,3.05957734,4288.4,4287.6,3.2078]
[1759310820325,0.41954,4288.3,4287.6,3.2078]
[1759310821130,3.05957734,4288.4,4287.6,3.2078]
[1759310821131,3.47911734,4288.4,4287.6,3.2078]
[1759310821326,2.55279629,4288.5,4287.6,3.2078]
[1759310821531,0.41939,4289.9,4288.6,1.312]
[1759310821737,1.2551,4290.0,4289.7,4.5198]
[1759310821932,0.41939,4289.9,4289.7,4.5198]
[1759310822129,1.2551,4290.0,4289.7,4.5198]
[1759310822432,0.00235391,4290.0,4289.7,3.21028334]
[1759310822633,0.00235391,4290.0,4289.8,1.312]
[1759310823337,0.00235391,4290.0,4289.7,3.36819624]
[1759310823530,0.00235391,4290.0,4289.8,1.312]
[1759310824229,0.00235391,4290.0,4289.7,3.36819624]
[1759310824432,0.00235391,4290.0,4289.9,1.312]
[1759310825031,0.00235391,4290.0,4289.9,42.112]
[1759310825233,0.00235391,4290.0,4289.9,47.112]
[1759310825435,3.0566,4290.9,4289.9,47.112]
[1759310825436,3.0566,4290.9,4290.2,1.3097]
[1759310825637,3.0566,4290.9,4290.8,3.2078]
[1759310825836,3.0566,4290.9,4290.3,3.2078]
[1759310826034,3.0566,4290.9,4290.8,3.2078]
[1759310826341,3.4777605,4290.9,4290.2,4.5175]
[1759310826732,3.4777605,4290.9,4289.9,40.8]
[1759310826733,0.0018605,4290.9,4290.8,1.3097]
[1759310827133,0.0018605,4290.9,4286.7,3.2078]
[1759310827134,0.41959,4287.8,4286.7,3.2078]
[1759310827336,3.0566,4285.4,4284.2,3.2078]
[1759310827536,3.2078,4286.8,4284.9,5.1059]
[1759310827537,3.0566,4285.6,4284.9,5.1059]
[1759310827731,3.2078,4285.0,4284.5,1.3004]
[1759310827936,3.2078,4285.0,4284.9,8.2216]
[1759310828233,3.2078,4285.6,4285.0,4.4161]
[1759310828438,3.2078,4285.1,4285.0,1.3004]
[1759310829034,3.62766,4285.1,4285.0,45.2161]
[1759310829240,3.62980285,4285.1,4285.0,45.2161]
[1759310829739,3.20994285,4285.1,4285.0,45.2161]
[1759310832440,3.20994285,4285.1,4285.0,50.2161]
[1759310833143,3.2078,4285.9,4285.0,50.3082]
[1759310833443,3.2078,4285.9,4285.1,3.1157]
[1759310834140,3.20950983,4285.9,4285.1,3.1157]
[1759310834740,3.20950983,4285.9,4285.8,43.9157]
[1759310835136,6.26610983,4285.9,4285.8,40.8]
[1759310836343,3.20950983,4285.9,4285.8,43.9157]
[1759310838341,11.26610983,4285.9,4285.8,40.8]
[1759310838637,0.41984,4285.4,4284.9,0.00163906]
[1759310838832,11.26610983,4285.9,4285.1,3.1157]
[1759310838833,3.2078,4285.6,4285.1,3.1157]
[1759310839141,3.2078,4285.6,4285.5,4.4489]
[1759310840738,3.2078,4285.6,4285.5,45.2489]
[1759310842736,0.00170983,4285.9,4285.5,45.2489]
[1759310842941,0.00170983,4285.9,4285.6,3.1485]
[1759310843141,0.00170983,4285.9,4285.5,42.1004]
[1759310843342,0.00170983,4285.9,4285.6,3.154]
[1759310843544,0.00170983,4285.9,4285.5,42.1004]
[1759310844544,0.00170983,4285.9,4285.6,3.154]
[1759310845247,0.00170983,4285.9,4285.5,42.1004]
[1759310845442,0.00170983,4285.9,4285.6,3.154]
[1759310845643,0.00170983,4285.9,4285.8,3.154]
[1759310845844,3.2078,4286.2,4286.1,3.154]
[1759310846142,2.95086248,4286.7,4286.6,3.154]
[1759310846447,3.2078,4287.2,4286.6,3.154]
[1759310846747,3.21025445,4287.2,4286.8,3.154]
[1759310846940,3.21025445,4287.2,4287.1,43.954]
[1759310848649,0.00245445,4287.2,4287.1,47.1618]
[1759310848946,2.01149582,4288.0,4287.3,3.154]
[1759310849148,2.43107582,4288.0,4287.3,3.154]
[1759310849446,2.01149582,4288.0,4287.3,3.154]
[1759310849646,2.01149582,4288.0,4287.3,3.57364]
[1759310849846,2.01379115,4288.0,4287.3,3.57364]
[1759310850044,2.01379115,4288.0,4287.3,3.154]
[1759310850245,2.43337115,4288.0,4287.3,3.154]
[1759310850648,2.01379115,4288.0,4287.3,3.154]
[1759310850948,2.01379115,4288.0,4287.4,0.41963]
[1759310851150,2.01379115,4288.0,4287.6,0.41962]
[1759310851339,5.38679115,4288.0,4287.6,3.154]
[1759310851645,5.38679115,4288.0,4287.5,1.67272]
[1759310851845,2.01379115,4288.0,4287.7,3.154]
[1759310852051,0.00229533,4288.0,4287.5,1.67272]
[1759310852351,0.00229533,4288.0,4287.8,0.41959]
[1759310852548,0.00229533,4288.0,4287.9,3.154]
[1759310852747,0.00229533,4288.0,4287.9,43.954]
[1759310853150,3.7925,4288.8,4288.1,3.154]
[1759310853541,3.373,4288.8,4288.1,0.15652979]
[1759310853843,3.373,4288.8,4288.2,3.154]
[1759310854243,3.37595941,4288.8,4288.2,3.15588792]
[1759310854746,3.37595941,4288.8,4288.2,3.57544792]
[1759310855049,3.373,4288.7,4288.2,0.00188792]
[1759310855452,4.6709,4288.0,4286.7,3.154]
[1759310855745,3.373,4287.9,4287.2,3.154]
[1759310855945,3.373,4288.4,4287.8,3.5736]
[1759310856545,3.373,4288.4,4287.8,3.57573363]
[1759310856746,3.373,4288.4,4287.8,3.15613363]
[1759310856950,3.373,4288.4,4287.9,0.41959]
[1759310857149,3.373,4288.4,4287.8,3.15613363]
[1759310857345,3.2078,4288.3,4287.8,3.15613363]
[1759310857747,3.373,4288.2,4287.8,3.57573363]
[1759310857946,3.2078,4288.3,4287.8,0.00213363]
[1759310858246,3.373,4288.2,4287.9,3.57359]
[1759310858443,3.2078,4288.3,4287.8,0.42173363]
[1759310858650,3.373,4288.2,4287.8,0.42173363]
[1759310858949,3.2078,4288.3,4287.9,0.41958]
[1759310859151,3.2078,4288.3,4288.0,0.41958]
[1759310859347,3.373,4288.2,4287.8,3.15613363]
[1759310859543,3.2078,4288.3,4287.8,0.00213363]
[1759310859744,3.373,4288.4,4287.8,0.00213363]
[1759310859952,3.373,4288.4,4288.3,3.57355]
[1759310860548,3.373,4288.7,4288.6,0.41951]
[1759310860949,0.00295941,4288.8,4288.7,0.41951]
[1759310861147,0.00295941,4288.8,4288.7,3.57351]
[1759310862750,0.00295941,4288.8,4288.7,44.37351]
[1759310865349,0.00295941,4288.8,4288.7,40.8]
[1759310865556,3.37595941,4288.8,4288.7,40.8]
[1759310865850,3.37595941,4288.8,4288.7,44.37351]
[1759310866746,6.5808,4289.5,4289.3,0.41945]
[1759310867053,5.96107494,4289.5,4289.4,3.154]
[1759310867253,3.88597494,4289.5,4289.1,3.154]
[1759310867452,3.373,4289.4,4289.3,0.41946]
[1759310867750,3.37544537,4289.4,4289.3,41.21945]
[1759310867954,0.00244537,4289.4,4289.3,44.37345]
[1759310871260,5.2572,4290.0,4289.9,7.82489]
[1759310871450,3.2078,4290.0,4289.9,7.4055]
[1759310871655,5.2572,4290.0,4289.9,7.4055]
[1759310871850,10.6784,4290.0,4289.9,2.1175]
[1759310872056,11.9763,4290.0,4289.9,40.8]
[1759310872249,11.97891248,4290.0,4289.9,40.8]
[1759310872456,17.39830248,4290.0,4289.9,40.8]
[1759310873654,17.39830248,4290.0,4289.1,2.54327]
[1759310873655,5.3409,4289.2,4289.1,2.54327]
[1759310873858,5.3409,4289.2,4289.1,5.72257]
[1759310874154,5.3409,4289.2,4289.1,46.52257]
[1759310875754,5.3409,4289.2,4289.1,46.1031]
[1759310876058,5.3409,4289.2,4289.1,46.52258]
[1759310876457,2.1972,4289.5,4289.4,2.2024]
[1759310876649,3.1437,4289.9,4289.4,4.3262]
[1759310876855,5.3409,4289.9,4289.8,4.3262]
[1759310877055,7.419,4289.9,4289.8,4.3262]
[1759310877352,7.419,4289.9,4289.8,7.5055]
[1759310877953,7.419,4289.9,4289.8,42.9238]
[1759310878159,4.2753,4289.9,4289.4,3.62725]
[1759310878361,2.1972,4289.6,4289.5,5.3031]
[1759310878557,5.3409,4289.6,4289.5,5.3031]
[1759310879649,7.419,4289.6,4289.5,7.5055]
[1759310880356,2.0781,4289.4,4289.2,3.99557514]
[1759310880567,7.419,4289.3,4289.2,6.53884514]
[1759310880756,7.419,4289.3,4289.2,8.32177514]
[1759310881062,7.22375555,4289.7,4289.6,2.54323]
[1759310881363,7.22375555,4289.7,4289.6,7.5055]
[1759310881657,3.21041248,4290.0,4289.9,7.9249]
[1759310882451,0.00261248,4290.0,4289.9,8.01832423]
[1759310882862,0.00261248,4290.0,4289.9,8.83459937]
[1759310883061,1.2979,4291.0,4290.3,0.41936]
[1759310883365,7.419,4291.0,4290.9,7.5055]
[1759310883551,7.419,4291.0,4290.9,2.1238]
[1759310883754,7.419,4291.0,4290.9,4.3262]
[1759310883962,7.419,4291.0,4290.9,7.5055]
[1759310884164,7.42108768,4291.0,4290.9,7.50833214]
[1759310884456,7.42108768,4291.0,4290.9,4.32903214]
[1759310884662,8.69758768,4291.0,4290.9,0.00283214]
[1759310888663,8.69758768,4291.0,4290.9,3.214e-05]
[1759310888868,1.2765,4290.0,4289.5,1.21575948]
[1759310889057,3.2078,4289.6,4288.8,3.1793]
[1759310889369,3.2078,4289.6,4289.2,0.41947]
[1759310889768,3.2078,4289.6,4289.2,0.42122242]
[1759310889769,6.3515,4289.6,4289.2,0.42122242]
[1759310889967,3.1437,4289.5,4289.2,0.42121242]
[1759310890165,3.2078,4289.6,4289.4,3.1793]
[1759310890360,3.2078,4289.6,4289.3,0.41945]
[1759310890960,3.2078,4289.6,4289.5,4.5082]
[1759310891968,1.2765,4290.0,4289.5,1.3289]
[1759310892271,3.1437,4289.9,4289.6,3.1793]
[1759310892473,1.2765,4290.0,4289.6,3.1793]
[1759310892972,3.1437,4289.9,4289.5,1.74833]
[1759310893376,3.1437,4289.9,4289.6,3.1793]
[1759310893571,3.1437,4289.9,4289.5,1.74833]
[1759310893775,2.1972,4289.9,4289.8,7.5055]
[1759310894075,11.04617,4290.2,4290.1,2.1238]
[1759310894277,10.6268,4290.2,4290.1,2.1238]
[1759310894674,4.2753,4289.6,4289.5,5.3031]
[1759310894870,7.419,4289.6,4289.5,2.54323]
[1759310895773,4.2753,4289.3,4289.2,0.00175242]
[1759310896074,7.419,4289.3,4289.2,2.54501242]
[1759310896469,7.419,4289.3,4289.2,0.00175242]
[1759310897773,2.1972,4289.6,4289.5,4.74564]
[1759310897978,5.3409,4289.6,4289.5,7.92494]
[1759310898476,3.2078,4289.7,4289.6,7.5055]
[1759310899272,0.00208768,4291.0,4290.8,5.8509]
[1759310899474,1.2765,4292.0,4291.3,0.41925]
[1759310899779,1.2765,4292.0,4291.4,3.2078]
[1759310899978,1.69569,4292.0,4291.2,3.1955]
[1759310900478,1.27857173,4292.0,4291.2,3.1955]
[1759310901374,3.2745,4291.9,4291.2,3.1955]
[1759310901976,3.6937,4291.9,4291.2,3.1955]
[1759310902376,3.2745,4291.9,4291.2,3.1955]
[1759310902574,3.2745,4291.9,4291.2,3.61477]
[1759310902878,3.2745,4291.9,4291.4,3.2078]
[1759310903372,3.2554,4291.9,4291.4,3.2078]
[1759310903574,3.67461,4291.9,4291.4,3.2078]
[1759310903770,3.2554,4293.4,4292.0,4.5072]
[1759310903983,3.2554,4293.4,4293.3,3.2078]
[1759310904182,3.2554,4293.4,4292.8,6.594]
[1759310904479,3.2554,4293.4,4292.8,3.2078]
[1759310904873,3.2580279,4293.4,4292.9,0.4191]
[1759310905074,3.2580279,4293.4,4292.8,3.20981679]
[1759310905280,1.2625,4293.0,4292.8,3.20981679]
[1759310905474,3.2554,4292.9,4292.8,3.20981679]
[1759310905682,0.0026279,4293.4,4292.8,6.59601679]
[1759310905882,0.0026279,4293.4,4293.0,3.80528]
[1759310906284,3.2554,4293.3,4293.2,0.41907]
[1759310906481,3.2554,4293.3,4293.2,3.80527]
[1759310906886,0.0026279,4293.4,4293.3,3.3862]
[1759310907183,3.2554,4294.3,4293.8,0.419]
[1759310907385,1.2625,4295.0,4294.1,3.3862]
[1759310907888,1.2625,4294.5,4293.5,3.2078]
[1759310908083,1.68145,4294.5,4293.5,3.2078]
[1759310908388,1.68397711,4294.5,4293.5,3.62683]
[1759310908588,0.41896,4294.4,4293.5,3.2078]
[1759310908787,0.41896,4294.4,4293.5,3.62684]
[1759310909084,0.41897,4294.2,4293.5,3.2078]
[1759310909286,3.2554,4293.9,4293.5,3.2078]
[1759310909782,1.2625,4294.0,4293.5,6.594]
[1759310910086,1.2625,4293.5,4293.0,3.2078]
[1759310910283,3.2554,4293.4,4292.8,0.00201679]
[1759310910482,3.2554,4292.9,4292.8,0.00201679]
[1759310914083,3.2554,4292.9,4292.8,3.38821679]
[1759310915286,3.2554,4293.4,4292.8,3.38821679]
[1759310915591,3.2078,4293.7,4292.8,3.38821679]
[1759310915885,3.2078,4293.7,4293.1,0.41908]
[1759310916387,6.4632,4293.7,4293.1,3.3862]
[1759310916887,6.88222,4293.7,4293.1,3.3862]
[1759310917591,6.4632,4293.7,4293.1,3.3862]
[1759310917892,6.4632,4293.7,4293.1,3.80528]
[1759310918293,3.2554,4293.6,4293.3,3.3862]
[1759310918490,3.2078,4293.7,4293.3,3.3862]
[1759310918688,3.2554,4293.6,4293.0,1.2994]
[1759310918891,3.2554,4293.6,4293.1,5.5543]
[1759310919092,3.2078,4293.7,4293.2,3.80527]
[1759310919290,2.1055,4293.3,4293.2,8.21937]
[1759310919489,2.1055,4293.3,4293.2,7.8003]
[1759310919691,3.2554,4293.6,4293.3,3.3862]
[1759310919997,2.1055,4293.4,4293.3,7.8003]
[1759310922297,3.62682,4293.7,4292.9,8.2194]
[1759310922298,2.1055,4293.0,4292.9,8.2194]
[1759310922600,7.5489,4293.0,4292.9,7.8003]
[1759310923192,1.89946712,4293.7,4293.6,7.8003]
[1759310924186,10.7567,4294.2,4294.1,7.8003]
[1759310926391,11.17567,4294.2,4294.1,2.1681]
[1759310926696,11.17567,4294.2,4293.6,7.8003]
[1759310926697,7.5489,4293.7,4293.6,7.8003]
[1759310927096,7.5489,4293.7,4293.6,8.21934]
[1759310927294,7.5489,4293.7,4293.6,7.8003]
[1759310927595,7.5489,4293.7,4293.6,2.1681]
[1759310927999,3.2554,4293.6,4293.1,3.3862]
[1759310928193,5.3609,4293.2,4293.1,8.21938]
[1759310928598,5.3609,4293.2,4293.1,8.27652318]
[1759310928896,2.1055,4293.2,4293.1,8.27652318]
[1759310929699,2.1055,4293.6,4293.5,8.21935]
[1759310929895,7.5489,4294.1,4294.0,5.5543]
[1759310930095,7.5489,4294.1,4294.0,7.8003]
[1759310930292,0.00252711,4294.5,4294.0,9.0997]
[1759310930603,5.36342711,4294.5,4294.4,7.8003]
[1759310930805,7.97036711,4294.5,4294.4,2.1681]
[1759310931002,3.2554,4294.4,4294.3,2.1681]
[1759310931202,7.5489,4294.4,4294.3,5.5543]
[1759310931701,7.5489,4294.4,4294.3,7.8003]
[1759310932301,3.2554,4293.7,4293.6,0.81311812]
[1759310932603,0.41898,4294.2,4293.4,4.43940856]
[1759310932604,5.3609,4293.6,4293.5,5.5543]
[1759310932803,2.1055,4293.6,4293.5,9.51874]
[1759310933110,5.3609,4294.4,4294.3,4.4141]
[1759310933310,5.3609,4294.4,4294.3,7.5061]
[1759310933609,7.4458,4294.4,4294.3,7.5061]
[1759310934097,7.86476,4294.4,4294.3,7.5061]
[1759310934294,7.86476,4294.4,4294.0,1.2994]
[1759310934602,2.1121,4293.9,4293.8,4.4253]
[1759310934804,2.1121,4293.9,4293.8,7.5173]
[1759310934997,0.41903,4293.7,4293.6,3.065605]
[1759310935307,7.95033,4293.7,4293.6,2.2472]
[1759310935706,7.95033,4293.7,4293.6,5.3392]
[1759310936901,7.95033,4293.7,4293.6,7.5173]
[1759310937401,3.2078,4293.8,4293.6,7.5173]
[1759310937611,5.73887,4294.3,4294.2,7.5173]
[1759310938498,9.07317,4294.3,4294.2,7.5173]
[1759310938710,5.86537,4294.3,4294.2,7.5173]
[1759310938906,2.53106,4294.3,4294.2,6.17418306]
[1759310939905,0.00252711,4294.5,4294.4,7.5173]
[1759310939906,2.53357711,4294.5,4294.4,7.5173]
[1759310940207,7.95277711,4294.5,4294.4,2.2472]
[1759310940512,7.53382711,4294.5,4294.4,5.3392]
[1759310940808,2.11462711,4294.5,4294.4,7.5173]
[1759310941207,0.00252711,4294.5,4294.4,7.5173]
[1759310941508,0.00252711,4294.5,4294.4,13.335705]
[1759310941711,0.00252711,4294.5,4294.4,12.5173]
[1759310945509,3.2078,4295.5,4295.0,2.6661]
[1759310945710,3.2078,4295.5,4295.0,9.2864]
[1759310945912,3.3343,4295.7,4295.0,12.4942]
[1759310946113,1.2594,4296.0,4295.0,17.4942]
[1759310946315,3.3343,4296.1,4295.0,17.4942]
[1759310946517,5.00250894,4295.1,4295.0,18.31135562]
[1759310947217,5.00250894,4295.1,4295.0,13.31135562]
[1759310947517,5.00250894,4295.1,4295.0,12.4942]
[1759310951111,12.53380894,4295.1,4295.0,11.144]
[1759310951318,5.00250894,4295.1,4295.0,12.4942]
[1759310951814,5.00250894,4295.1,4295.0,12.0753]
[1759310952419,5.00250894,4295.1,4295.0,12.4942]
[1759310953015,12.53380894,4295.1,4295.0,7.6331]
[1759310953417,7.5313,4294.8,4294.7,5.3392]
[1759310954020,7.5313,4294.8,4294.7,7.5173]
[1759310955112,2.1121,4294.8,4294.7,7.5173]
[1759310955721,5.4464,4294.8,4294.7,7.5173]
[1759310956020,7.5313,4294.8,4294.7,7.5173]
[1759310956717,4.197,4294.8,4294.7,2.2472]
[1759310957021,4.197,4294.8,4294.7,7.5173]
[1759310957222,2.1121,4294.8,4294.7,7.5173]
[1759310957717,7.5313,4294.8,4294.7,2.2472]
[1759310958221,12.5313,4294.8,4294.5,3.2078]
[1759310958415,7.5313,4294.7,4294.6,7.5173]
[1759310959218,7.5313,4294.7,4294.5,3.2078]
[1759310959413,7.5313,4294.7,4294.3,0.81715562]
[1759310959623,7.544,4294.3,4294.1,0.81715562]
[1759310959822,7.544,4294.2,4294.1,0.81715562]
[1759310960025,7.544,4294.2,4294.1,3.00005562]
[1759310960322,7.544,4294.2,4294.1,8.44035562]
[1759310960518,7.544,4294.2,4294.1,7.6232]
[1759310960723,4.275,4294.6,4294.5,7.6232]
[1759310960925,7.544,4294.6,4294.5,2.1829]
[1759310961222,5.4445,4294.4,4294.3,2.1829]
[1759310961417,7.544,4294.4,4294.2,0.817855]
[1759310961625,4.275,4294.4,4294.1,0.817855]
[1759310961828,7.544,4294.2,4294.1,2.60189]
[1759310962423,7.544,4294.2,4294.1,3.419745]
[1759310962628,7.544,4294.2,4294.1,6.227555]
[1759310962821,7.544,4294.2,4294.1,0.817855]
[1759310963021,3.4257,4294.0,4293.9,2.1829]
[1759310963232,8.8702,4294.0,4293.9,2.1829]
[1759310963933,8.8702,4294.0,4293.8,0.817855]
[1759310964139,8.8702,4294.0,4293.6,0.41904]
[1759310964436,8.8702,4294.0,4293.5,3.2078]
[1759310964934,9.28921,4294.0,4293.5,3.2078]
[1759310965141,7.5101,4293.6,4293.5,3.2078]
[1759310966637,7.5101,4293.6,4293.5,10.7666]
[1759310966841,2.2552,4293.6,4293.5,12.0314]
[1759310967539,4.5118,4294.0,4293.6,0.41904]
[1759310967739,8.8363,4294.0,4293.9,2.2525]
[1759310967945,7.5101,4294.5,4294.4,7.5588]
[1759310968142,2.2552,4294.5,4294.4,7.5588]
[1759310968440,7.5101,4294.3,4294.2,8.431555]
[1759310968646,2.2552,4294.5,4294.4,7.97776]
[1759310968944,5.4408,4294.5,4294.4,7.97776]
[1759310969836,5.4408,4294.5,4294.4,7.5588]
[1759310970239,2.2552,4294.5,4294.4,7.5588]
[1759310971242,3.1856,4294.8,4294.4,7.5588]
[1759310971444,2.2552,4294.5,4294.4,4.4059]
[1759310971645,5.4408,4294.5,4294.4,7.5588]
[1759310972343,2.2552,4294.5,4294.4,7.5588]
[1759310973745,5.4408,4294.5,4294.4,7.5588]
[1759310974844,8.7618,4294.5,4294.4,4.4059]
[1759310975051,8.7618,4294.5,4294.4,2.2525]
[1759310975343,7.5101,4294.4,4294.3,3.070355]
[1759310975545,7.5101,4294.4,4294.3,6.223255]
[1759310976543,7.5101,4294.4,4294.3,3.070355]
[1759310977838,7.5101,4294.4,4294.3,0.817855]
[1759310978138,7.5101,4294.4,4294.3,7.5588]
[1759310978346,5.4408,4294.4,4294.3,7.5588]
[1759310978549,2.2552,4294.4,4294.3,7.5588]
[1759310978749,7.5101,4294.4,4294.3,7.5588]
[1759310979849,7.5101,4294.4,4294.3,7.97777]
[1759310980247,7.5101,4294.8,4294.7,4.4059]
[1759310981345,7.5101,4294.8,4294.6,0.82352518]
[1759310981836,5.4408,4294.7,4294.6,1.24246518]
[1759310982042,7.5101,4294.7,4294.6,3.49496518]
[1759310982346,7.5101,4294.7,4294.6,3.07602518]
[1759310982643,7.5101,4294.7,4294.6,3.49496518]
[1759310982847,7.5101,4294.7,4294.6,8.80126518]
[1759310984045,7.5101,4294.7,4294.6,7.97774]
[1759310984647,2.2552,4294.7,4294.6,9.20934856]
[1759310985041,3.1856,4295.0,4294.9,2.2525]
[1759310985246,2.2552,4295.0,4294.9,9.20931856]
[1759310985547,7.25770894,4295.1,4295.0,9.2425]
[1759310985746,7.25770894,4295.1,4295.0,10.47917957]
[1759310986143,10.44330894,4295.1,4295.0,8.8236]
[1759310986345,12.51260894,4295.1,4295.0,7.5588]
[1759310987048,12.51260894,4295.1,4294.6,7.97774]
[1759310987049,7.5101,4294.7,4294.6,7.97774]
[1759310990053,7.5101,4294.7,4294.6,7.5588]
[1759310990249,7.5101,4294.7,4294.6,7.97774]
[1759310991949,7.5101,4294.6,4294.5,2.2525]
[1759310992147,3.1856,4294.4,4294.3,3.89464475]
[1759310992352,7.5101,4294.4,4294.3,3.89464475]
[1759310992554,7.5101,4294.4,4294.3,4.31361475]
[1759310993147,5.00250894,4295.1,4295.0,8.8236]
[1759310993148,3.85458794,4295.1,4295.0,8.8236]
[1759310993349,6.10978794,4295.1,4295.0,12.0314]
[1759310993643,6.10978794,4295.1,4295.0,13.68978913]
[1759310993848,6.10978794,4295.1,4295.0,12.4503]
[1759310994249,3.85458794,4295.1,4295.0,12.4503]
[1759310995758,2.77206508,4295.1,4295.0,17.4503]
[1759310996444,5.2802,4296.0,4295.9,7.7209]
[1759310996653,7.4194,4296.0,4295.9,7.7209]
[1759310996854,10.7017,4296.0,4295.9,7.7209]
[1759310997450,7.42116081,4296.0,4295.9,7.72265545]
[1759310997645,4.21336081,4296.0,4295.9,7.72265545]
[1759310997853,7.49566081,4296.0,4295.9,6.0538977]
[1759310998051,4.21336081,4296.0,4295.9,8.2250977]
[1759310998857,4.21336081,4296.0,4295.9,7.8062877]
[1759310999162,4.21336081,4296.0,4295.9,8.2250977]
[1759310999956,4.21336081,4296.0,4295.9,7.8062877]
[1759311000151,0.00176081,4296.0,4295.9,8.2250977]
[1759311002063,2.0724,4296.8,4296.7,8.13963]
[1759311002258,3.2078,4297.1,4297.0,8.9788]
[1759311002460,1.2517,4299.5,4297.8,4.406]
[1759311002461,5.3547,4297.9,4297.8,4.406]
[1759311002662,3.2823,4297.6,4297.0,4.5728]
[1759311002866,7.4939,4297.1,4296.8,0.82438087]
[1759311003064,7.49648994,4297.1,4297.0,3.4927]
[1759311003264,7.49648994,4297.1,4297.0,3.3149]
[1759311003465,7.49648994,4297.1,4297.0,5.5497]